Workbook

Sheet Перелік СРВ
O1: Додаток 1
N2: до Санітарних правил
B4: ПОГОДЖУЮ | N4: ПОГОДЖУЮ
B5: ________________________________________ | M5: _______________________________________________
B6: (найменування посади керівника державного | M6: (найменування посади керівника органу виконавчої
B7: спеціалізованого | M7: влади з
B8: ____________________________________ | M8: _______________________________________________
B9: лісозахисного підприємства) | M9: питань лісового господарства Автономної Республіки Крим або
B10: __________________________________________ | M10: _______________________________________________
B11: (підпис, ініціали та прізвище) | M11: відповідного територіального органу Держлісагенства)
B12: ____ _________________ 20 ____ року | M12: ______________________________________________
M13: (пдпис, ініціали та прізвище)
M14: _____ _______________20___ року
A19: ПЕРЕЛІК
A21: заходів з поліпшення санітарного стану лісів
A22: ДП "Костопільський лісгосп"
A23: (найменування власника лісів, постійного лісокористувача)
A24: _____________________________________
A25: (Автономна Республіка Крим, область)
A27: Лісництво | B27: № кварталу | C27: № виділу | D27: Площа виділу, га | E27: № підвиділу | F27: Площа підвиділу, гектарів | H27: Коротка таксаційна характеристика відповідно до матеріалів лісовпрідкування | O27: Категорія захищеності | P27: Вид запланованих заходиів | Q27: Причини призначення заходів | R27: Орієнтовний запас деревини, що підлягає вирубуванню, м3/га | S27: Наявність рослин та тварин занесених до Червоної книги
F28: загальна | G28: у тому числі площа, можлива для експлуатації | H28: склад | I28: вік, років | J28: повнота | K28: бонітет | L28: середня висота, м | M28: середній діаметер, см | N28: запас деревостану, м3/га
A29: 1 | B29: 2 | C29: 3 | D29: 4 | E29: 5 | F29: 6 | G29: 7 | H29: 8 | I29: 9 | J29: 10 | K29: 11 | L29: 12 | M29: 13 | N29: 14 | O29: 15 | P29: 16 | Q29: 17 | R29: 18 | S29: 19
A30: Костопільське | B30: 1 | C30: 14 | D30: 4.5 | F30: 4.5 | H30: 10Сз+Дз | I30: 60 | J30: 0.75 | K30: 1А | L30: 24 | M30: 32 | N30: 390 | O30: 3 | P30: ВСР | Q30: КВШ, комплекс еко.-клім. факторів | R30: 15 | S30: немає
B31: 1 | C31: 17 | D31: 0.6 | F31: 0.6 | H31: 7Сз3Бп | I31: 55 | J31: 0.85 | K31: 1Б | L31: 26 | M31: 30 | N31: 390 | O31: 3 | P31: ВСР | Q31: Вітровал | R31: 10 | S31: немає
B32: 2 | C32: 23 | D32: 3.3 | F32: 1.9 | H32: 10Сз | I32: 75 | J32: 0.7 | K32: 1А | L32: 27 | M32: 32 | N32: 420 | O32: 4 | P32: ВСР | Q32: КВШ, комплекс еко.-клім. факторів | R32: 15 | S32: немає
B33: 4 | C33: 19 | D33: 4.5 | F33: 4.5 | H33: 10Сз+Бп+Гз+Дз | I33: 55 | J33: 0.7 | K33: 1Б | L33: 25 | M33: 30 | N33: 360 | O33: 4 | P33: ВСР | Q33: КВШ, комплекс еко.-клім. факторів | R33: 15 | S33: немає
B34: 22 | C34: 7 | D34: 4.6 | F34: 4.6 | H34: 10Сз+Бп | I34: 44 | J34: 0.9 | K34: 1А | L34: 19 | M34: 22 | N34: 330 | O34: 2 | P34: ВСР | Q34: КВШ, комплекс еко.-клім. факторів | R34: 10 | S34: немає
B35: 44 | C35: 21 | D35: 4.6 | F35: 4.6 | H35: 7Гз3Дз+Сз+Ос+Бп | I35: 144 | J35: 0.55 | K35: 2 | L35: 24 | M35: 40 | N35: 130 | O35: 2 | P35: ВСР | Q35: Бурелом | R35: 15 | S35: немає
B36: 67 | C36: 2 | D36: 14 | E36: 1 | F36: 2 | H36: 10Сз+Бп+Влч+Гз | I36: 58 | J36: 0.8 | K36: 1Б | L36: 27 | M36: 28 | N36: 470 | O36: 2 | P36: ВСР | Q36: КВШ, комплекс еко.-клім. факторів | R36: 5 | S36: немає
B37: 67 | C37: 10 | D37: 8.1 | F37: 8.1 | H37: 10Сз | I37: 62 | J37: 0.8 | K37: 1А | L37: 25 | M37: 30 | N37: 430 | O37: 2 | P37: ВСР | Q37: КВШ, комплекс еко.-клім. факторів | R37: 10 | S37: немає
B38: 76 | C38: 15 | D38: 4.6 | F38: 4.6 | H38: 7Сз3Дз | I38: 52 | J38: 0.75 | K38: 1А | L38: 22 | M38: 28 | N38: 320 | O38: 4 | P38: ВСР | Q38: КВШ, комплекс еко.-клім. факторів | R38: 10 | S38: немає
B39: 82 | C39: 6 | D39: 7.7 | F39: 7.7 | H39: 4Дз2Сз2Гз1Бп1Ос | I39: 51 | J39: 0.75 | K39: 1 | L39: 18 | M39: 22 | N39: 250 | O39: 2 | P39: ВСР | Q39: КВШ, комплекс еко.-клім. факторів | R39: 15 | S39: немає
A131: Разом | D131: =SUM(D30:D130) -> 56.5 | F131: =SUM(F30:F130) -> 43.1 | G131: =SUM(G30:G130) -> 0
A132: Мащанське | B132: 3 | C132: 10 | D132: 2.1 | F132: 2.1 | H132: 10Сз+Гз,Дз,Ос | I132: 85 | J132: 0.6 | K132: 1 | L132: 28 | M132: 36 | N132: 380 | O132: 2 | P132: ВСР | Q132: КВШ, комплекс еко.-клім. факторів | R132: 10 | S132: немає
B133: 3 | C133: 13 | D133: 0.5 | F133: 0.5 | H133: 6Ос1Дз2Гз1Бп | I133: 80 | J133: 0.6 | K133: 1 | L133: 26 | M133: 30 | N133: 240 | O133: 2 | P133: ВСР | Q133: КВШ, комплекс еко.-клім. факторів | R133: 10 | S133: немає
B134: 3 | C134: 18 | D134: 0.7 | F134: 0.7 | H134: 7Сз1Дз1Ос1Гз | I134: 90 | J134: 0.7 | K134: 1 | L134: 27 | M134: 40 | N134: 380 | O134: 2 | P134: ВСР | Q134: КВШ, комплекс еко.-клім. факторів | R134: 15 | S134: немає
B135: 4 | C135: 23 | D135: 0.9 | F135: 0.9 | H135: 10Сз+Дз,Гз | I135: 110 | J135: 0.6 | K135: 2 | L135: 28 | M135: 44 | N135: 380 | O135: 2 | P135: ВСР | Q135: КВШ, комплекс еко.-клім. факторів | R135: 10 | S135: немає
B136: 13 | C136: 11 | D136: 2.8 | F136: 2.8 | H136: 9Сз1Дз+Бп,Гз | I136: 75 | J136: 0.7 | K136: 1А | L136: 28 | M136: 36 | N136: 420 | O136: 2 | P136: ВСР | Q136: КВШ, комплекс еко.-клім. факторів | R136: 10 | S136: немає
B137: 13 | C137: 12 | D137: 1.7 | F137: 1.7 | H137: 10Сз+Дз | I137: 80 | J137: 0.6 | K137: 1А | L137: 28 | M137: 36 | N137: 380 | O137: 2 | P137: ВСР | Q137: КВШ, комплекс еко.-клім. факторів | R137: 15 | S137: немає
B138: 14 | C138: 19 | D138: 2.1 | F138: 2.1 | H138: 8Сз2Гз+Дз | I138: 80 | J138: 0.7 | K138: 1 | L138: 27 | M138: 36 | N138: 400 | O138: 2 | P138: ВСР | Q138: КВШ, комплекс еко.-клім. факторів | R138: 15 | S138: немає
B139: 39 | C139: 25 | D139: 2.6 | F139: 2.3 | H139: 10Сз+Дз | I139: 70 | J139: 0.6 | K139: 1А | L139: 27 | M139: 36 | N139: 360 | O139: 2 | P139: ВСР | Q139: КВШ, комплекс еко.-клім. факторів | R139: 15 | S139: немає
B140: 48 | C140: 13 | D140: 3.2 | F140: 3.2 | H140: 8Сз2Гз+Дз | I140: 70 | J140: 0.7 | K140: 1 | L140: 25 | M140: 28 | N140: 270 | O140: 2 | P140: ВСР | Q140: КВШ, комплекс еко.-клім. факторів | R140: 10 | S140: немає
B141: 52 | C141: 21 | D141: 3.8 | F141: 2.8 | H141: 10Сз | I141: 55 | J141: 0.7 | K141: 1А | L141: 23 | M141: 28 | N141: 340 | O141: 2 | P141: ВСР | Q141: КВШ, комплекс еко.-клім. факторів | R141: 10 | S141: немає
B142: 52 | C142: 24 | D142: 1.5 | F142: 1.5 | H142: 10Сз+Дз,Бп | I142: 80 | J142: 0.7 | K142: 1 | L142: 26 | M142: 36 | N142: 400 | O142: 2 | P142: ВСР | Q142: КВШ, комплекс еко.-клім. факторів | R142: 10 | S142: немає
B143: 53 | C143: 29 | D143: 1.9 | F143: 1.9 | H143: 3Дз2Влч2Бп1Ос1Гз1Яз | I143: 53 | J143: 0.7 | K143: 2 | L143: 17 | M143: 18 | N143: 180 | O143: 4 | P143: ВСР | Q143: КВШ, комплекс еко.-клім. факторів | R143: 15 | S143: немає
B144: 53 | C144: 32 | D144: 3.5 | F144: 3.5 | H144: 4Сз3Бп2Дз(80)1Гз+Дз(210) | I144: 80 | J144: 0.7 | K144: 1 | L144: 26 | M144: 32 | N144: 290 | O144: 4 | P144: ВСР | Q144: КВШ, комплекс еко.-клім. факторів | R144: 10 | S144: немає
B145: 70 | C145: 13 | D145: 7.1 | F145: 6.3 | H145: 8Сз2Дз+Бп | I145: 80 | J145: 0.65 | K145: 1 | L145: 27 | M145: 36 | N145: 360 | O145: 3 | P145: ВСР | Q145: КВШ, комплекс еко.-клім. факторів | R145: 15 | S145: немає
B146: 71 | C146: 8 | D146: 3.8 | F146: 3.8 | H146: 9Сз1Гз | I146: 82 | J146: 0.75 | K146: 1 | L146: 26 | M146: 32 | N146: 350 | O146: 3 | P146: ВСР | Q146: КВШ, комплекс еко.-клім. факторів | R146: 10 | S146: немає
B147: 81 | C147: 31 | D147: 5.4 | F147: 5.4 | H147: 10Сз+Дз,Бп | I147: 48 | J147: 0.7 | K147: 1А | L147: 20 | M147: 24 | N147: 280 | O147: 4 | P147: ВСР | Q147: КВШ, комплекс еко.-клім. факторів | R147: 10 | S147: немає
B148: 82 | C148: 8 | D148: 2.5 | F148: 2.5 | H148: 8Сз1Дз1Бп | I148: 85 | J148: 0.6 | K148: 1 | L148: 27 | M148: 32 | N148: 330 | O148: 3 | P148: ВСР | Q148: КВШ, комплекс еко.-клім. факторів | R148: 15 | S148: немає
B149: 82 | C149: 12 | D149: 1.5 | F149: 1.5 | H149: 10Сз+Дз,Бп | I149: 85 | J149: 0.6 | K149: 2 | L149: 24 | M149: 32 | N149: 310 | O149: 3 | P149: ВСР | Q149: КВШ, комплекс еко.-клім. факторів | R149: 15 | S149: немає
A233: Разом | D233: =SUM(D132:D232) -> 47.6 | F233: =SUM(F132:F232) -> 45.5 | G233: =SUM(G132:G232) -> 0
A234: Базальтівське | B234: 4 | C234: 20 | D234: 4.4 | F234: 4.4 | H234: 3Дз3Яз3Бп1Гз | I234: 80 | J234: 0.6 | K234: 1 | L234: 27 | M234: 32 | N234: 290 | O234: 4 | P234: ВСР | Q234: Вітровал | R234: 15 | S234: немає
B235: 6 | C235: 20 | D235: 1.4 | F235: 1.4 | H235: 10Сз+Дз | I235: 80 | J235: 0.7 | K235: 1 | L235: 30 | M235: 36 | N235: 460 | O235: 4 | P235: ВСР | Q235: КВШ, комплекс еко.-клім. факторів | R235: 15 | S235: немає
B236: 8 | C236: 6 | D236: 9.1 | F236: 9.1 | H236: 7Бп2Гз1Дз+Ос+Клг | I236: 75 | J236: 0.7 | K236: 1 | L236: 26 | M236: 28 | N236: 230 | O236: 4 | P236: ВСР | Q236: КВШ, комплекс еко.-клім. факторів | R236: 10 | S236: немає
B237: 9 | C237: 20 | D237: 2.4 | F237: 2.4 | H237: 10Сз+Гз+Дз | I237: 72 | J237: 0.7 | K237: 1 | L237: 29 | M237: 36 | N237: 440 | O237: 4 | P237: ВСР | Q237: КВШ, комплекс еко.-клім. факторів | R237: 15 | S237: немає
B238: 14 | C238: 2 | D238: 2.4 | F238: 2.4 | H238: 9Сз1Гз+Бп+Дз | I238: 80 | J238: 0.7 | K238: 1 | L238: 29 | M238: 36 | N238: 370 | O238: 3 | P238: ВСР | Q238: КВШ, комплекс еко.-клім. факторів | R238: 15 | S238: немає
B239: 14 | C239: 8 | D239: 6.6 | F239: 6.6 | H239: 7Сз2Бп1Гз+Дз+Клг | I239: 80 | J239: 0.7 | K239: 1 | L239: 30 | M239: 36 | N239: 370 | O239: 3 | P239: ВСР | Q239: КВШ, комплекс еко.-клім. факторів | R239: 15 | S239: немає
B240: 15 | C240: 18 | D240: 2.9 | E240: 1 | F240: 1 | H240: 8Сз2Дз+Бп | I240: 50 | J240: 0.6 | K240: 1 | L240: 22 | M240: 28 | N240: 250 | O240: 4 | P240: ВСР | Q240: КВШ, комплекс еко.-клім. факторів | R240: 10 | S240: немає
B241: 18 | C241: 35 | D241: 2.6 | F241: 2.6 | H241: 8Сз2Бп+Ялє+Дз | I241: 80 | J241: 0.6 | K241: 1 | L241: 30 | M241: 40 | N241: 350 | O241: 4 | P241: ВСР | Q241: КВШ, комплекс еко.-клім. факторів | R241: 20 | S241: немає
B242: 18 | C242: 50 | D242: 1.1 | F242: 1.1 | H242: 7Сз3Дз | I242: 59 | J242: 0.7 | K242: 1 | L242: 26 | M242: 32 | N242: 360 | O242: 4 | P242: ВСР | Q242: КВШ, комплекс еко.-клім. факторів | R242: 10 | S242: немає
B243: 21 | C243: 79 | D243: 2.9 | F243: 2.9 | H243: 10Сз+Дз | I243: 75 | J243: 0.65 | K243: 1 | L243: 27 | M243: 32 | N243: 390 | O243: 4 | P243: ВСР | Q243: КВШ, комплекс еко.-клім. факторів | R243: 15 | S243: немає
B244: 22 | C244: 37 | D244: 3.7 | F244: 3.7 | H244: 9Сз1Дз+Клг | I244: 42 | J244: 0.8 | K244: 1 | L244: 23 | M244: 26 | N244: 360 | O244: 4 | P244: ВСР | Q244: КВШ, комплекс еко.-клім. факторів | R244: 20 | S244: немає
B245: 23 | C245: 7 | D245: 1.8 | F245: 1.8 | H245: 8Сз1Дз1Гз+Бп | I245: 80 | J245: 0.6 | K245: 1 | L245: 30 | M245: 36 | N245: 360 | O245: 4 | P245: ВСР | Q245: КВШ, комплекс еко.-клім. факторів | R245: 15 | S245: немає
B246: 25 | C246: 1 | D246: 4.1 | E246: 2 | F246: 2 | H246: 6Сз2Бп1Гз1Дз+Ос | I246: 80 | J246: 0.7 | K246: 1 | L246: 28 | M246: 32 | N246: 330 | O246: 4 | P246: ВСР | Q246: КВШ, комплекс еко.-клім. факторів | R246: 15 | S246: немає
B247: 25 | C247: 2 | D247: 13.1 | E247: 7 | F247: 3 | H247: 8Сз1Дз1Гз | I247: 80 | J247: 0.65 | K247: 1 | L247: 28 | M247: 32 | N247: 340 | O247: 4 | P247: ВСР | Q247: КВШ, комплекс еко.-клім. факторів | R247: 15 | S247: немає
B248: 25 | C248: 12 | D248: 13.5 | E248: 1 | F248: 3 | H248: 9Сз1Дз+Гз | I248: 80 | J248: 0.7 | K248: 1 | L248: 29 | M248: 36 | N248: 420 | O248: 4 | P248: ВСР | Q248: КВШ, комплекс еко.-клім. факторів | R248: 10 | S248: немає
B249: 26 | C249: 7 | D249: 1.3 | F249: 0.8 | H249: 10Сз+Дз+Гз | I249: 57 | J249: 0.7 | K249: 1 | L249: 24 | M249: 26 | N249: 350 | O249: 4 | P249: ВСР | Q249: КВШ, комплекс еко.-клім. факторів | R249: 15 | S249: немає
B250: 27 | C250: 18 | D250: 3.5 | F250: 3.5 | H250: 9Сз1Г+Дз+Бп | I250: 80 | J250: 0.7 | K250: 1 | L250: 28 | M250: 32 | N250: 360 | O250: 4 | P250: ВСР | Q250: КВШ, комплекс еко.-клім. факторів | R250: 10 | S250: немає
B251: 28 | C251: 13 | D251: 3.1 | F251: 3.1 | H251: 10Сз+Дз | I251: 75 | J251: 0.7 | K251: 1 | L251: 28 | M251: 32 | N251: 420 | O251: 4 | P251: ВСР | Q251: КВШ, комплекс еко.-клім. факторів | R251: 15 | S251: немає
B252: 30 | C252: 9 | D252: 2.1 | F252: 2.1 | H252: 10Сз+Бп+Дз+Гз | I252: 80 | J252: 0.7 | K252: 1 | L252: 27 | M252: 36 | N252: 420 | O252: 4 | P252: ВСР | Q252: КВШ, комплекс еко.-клім. факторів | R252: 15 | S252: немає
B253: 30 | C253: 20 | D253: 2.1 | F253: 2.1 | H253: 8Сз2Гз | I253: 56 | J253: 0.6 | K253: 1 | L253: 25 | M253: 32 | N253: 240 | O253: 4 | P253: ВСР | Q253: КВШ, комплекс еко.-клім. факторів | R253: 10 | S253: немає
B254: 30 | C254: 21 | D254: 1 | F254: 1 | H254: 8Сз2Гз | I254: 56 | J254: 0.6 | K254: 1 | L254: 26 | M254: 32 | N254: 240 | O254: 4 | P254: ВСР | Q254: КВШ, комплекс еко.-клім. факторів | R254: 15 | S254: немає
B255: 31 | C255: 14 | D255: 1.7 | F255: 1.7 | H255: 6Сз2Бп1Дз1Влч | I255: 80 | J255: 0.7 | K255: 1 | L255: 28 | M255: 40 | N255: 370 | O255: 4 | P255: ВСР | Q255: КВШ, комплекс еко.-клім. факторів | R255: 20 | S255: немає
B256: 34 | C256: 11 | D256: 2.2 | F256: 2.2 | H256: 9Сз1Дз+Гз | I256: 52 | J256: 0.7 | K256: 1 | L256: 23 | M256: 24 | N256: 330 | O256: 4 | P256: ВСР | Q256: КВШ, комплекс еко.-клім. факторів | R256: 10 | S256: немає
B257: 35 | C257: 7 | D257: 2.4 | F257: 2.4 | H257: 9Сз1Гз | I257: 77 | J257: 0.65 | K257: 1 | L257: 30 | M257: 36 | N257: 370 | O257: 4 | P257: ВСР | Q257: КВШ, комплекс еко.-клім. факторів | R257: 20 | S257: немає
B258: 35 | C258: 31 | D258: 0.4 | F258: 0.4 | H258: 3Дз2Сз2Влч1Бп1Гз1Ос | I258: 85 | J258: 0.5 | K258: 1 | L258: 28 | M258: 32 | N258: 250 | O258: 4 | P258: ВСР | Q258: КВШ, комплекс еко.-клім. факторів | R258: 15 | S258: немає
B259: 35 | C259: 40 | D259: 6.7 | E259: 5 | F259: 3 | H259: 10Сз+Бп | I259: 85 | J259: 0.6 | K259: 1 | L259: 28 | M259: 36 | N259: 380 | O259: 4 | P259: ВСР | Q259: КВШ, комплекс еко.-клім. факторів | R259: 15 | S259: немає
A260: Базальтівське | B260: 35 | C260: 40 | D260: 6.7 | E260: 6 | F260: 2 | H260: 10Сз+Бп | I260: 85 | J260: 0.6 | K260: 1 | L260: 28 | M260: 36 | N260: 380 | O260: 4 | P260: ВСР | Q260: КВШ, комплекс еко.-клім. факторів | R260: 20 | S260: немає
B261: 39 | C261: 13 | D261: 0.6 | F261: 0.6 | H261: 10Сз+Бп | I261: 80 | J261: 0.7 | K261: 1 | L261: 29 | M261: 36 | N261: 450 | O261: 4 | P261: ВСР | Q261: КВШ, комплекс еко.-клім. факторів | R261: 10 | S261: немає
B262: 42 | C262: 4 | D262: 2.2 | F262: 2.2 | H262: 10Сз+Гз | I262: 57 | J262: 0.7 | K262: 1 | L262: 25 | M262: 26 | N262: 370 | O262: 4 | P262: ВСР | Q262: КВШ, комплекс еко.-клім. факторів | R262: 10 | S262: немає
B263: 43 | C263: 40 | D263: 6.1 | E263: 1 | F263: 2.5 | H263: 10Сз | I263: 80 | J263: 0.4 | K263: 1 | L263: 27 | M263: 32 | N263: 210 | O263: 3 | P263: ВСР | Q263: КВШ, комплекс еко.-клім. факторів | R263: 15 | S263: немає
B264: 48 | C264: 11 | D264: 17.7 | E264: 1 | F264: 3 | H264: 10Сз | I264: 57 | J264: 0.85 | K264: 1 | L264: 21 | M264: 22 | N264: 370 | O264: 4 | P264: ВСР | Q264: КВШ, комплекс еко.-клім. факторів | R264: 10 | S264: немає
B265: 50 | C265: 21 | D265: 7.5 | E265: 1 | F265: 2 | H265: 10Влч | I265: 80 | J265: 0.5 | K265: 1 | L265: 26 | M265: 28 | N265: 250 | O265: 4 | P265: ВСР | Q265: КВШ, комплекс еко.-клім. факторів | R265: 10 | S265: немає
B266: 50 | C266: 22 | D266: 2.8 | F266: 2.8 | H266: 8Сз1Дз1Гз | I266: 55 | J266: 0.7 | K266: 1 | L266: 26 | M266: 26 | N266: 350 | O266: 4 | P266: ВСР | Q266: КВШ, комплекс еко.-клім. факторів | R266: 10 | S266: немає
B267: 52 | C267: 6 | D267: 32.9 | E267: 1 | F267: 3 | H267: 10Сз+Дз | I267: 55 | J267: 0.7 | K267: 1 | L267: 21 | M267: 22 | N267: 300 | O267: 4 | P267: ВСР | Q267: КВШ, комплекс еко.-клім. факторів | R267: 10 | S267: немає
A335: Разом | D335: =SUM(D234:D334) -> 175 | F335: =SUM(F234:F334) -> 87.8 | G335: =SUM(G234:G334) -> 0
A336: Моквинське
Q363: ПРГВ,КВШ
Q364: ПРГВ,КВШ
Q365: ПРГВ,КВШ
Q366: ПРГВ,КВШ
Q367: ПРГВ,КВШ
Q368: ПРГВ,КВШ
Q369: ПРГВ,КВШ
Q370: ПРГВ,КВШ
Q371: ПРГВ,КВШ
Q372: ПРГВ,КВШ
Q373: ПРГВ,КВШ
Q374: ПРГВ,КВШ
Q375: ПРГВ,КВШ
Q376: ПРГВ,КВШ
Q377: ПРГВ,КВШ
Q378: ПРГВ,КВШ
Q379: ПРГВ,КВШ
Q380: ПРГВ,КВШ
Q381: ПРГВ,КВШ
Q382: ПРГВ,КВШ
Q383: ПРГВ,КВШ
Q384: ПРГВ,КВШ
Q385: ПРГВ,КВШ
Q386: ПРГВ,КВШ
Q387: ПРГВ,КВШ
Q388: ПРГВ,КВШ
Q389: ПРГВ,КВШ
Q390: ПРГВ,КВШ
Q391: ПРГВ,КВШ
Q392: ПРГВ,КВШ
Q393: ПРГВ,КВШ
Q394: ПРГВ,КВШ
Q395: ПРГВ,КВШ
Q396: ПРГВ,КВШ
Q397: ПРГВ,КВШ
Q398: ПРГВ,КВШ
Q399: ПРГВ,КВШ
Q400: ПРГВ,КВШ
Q401: ПРГВ,КВШ
Q402: ПРГВ,КВШ
Q403: ПРГВ,КВШ
Q404: ПРГВ,КВШ
Q405: ПРГВ,КВШ
Q406: ПРГВ,КВШ
Q407: ПРГВ,КВШ
Q408: ПРГВ,КВШ
Q409: ПРГВ,КВШ
Q410: ПРГВ,КВШ
Q411: ПРГВ,КВШ
Q412: ПРГВ,КВШ
Q413: ПРГВ,КВШ
Q414: ПРГВ,КВШ
Q415: ПРГВ,КВШ
Q416: ПРГВ,КВШ
Q417: ПРГВ,КВШ
Q418: ПРГВ,КВШ
Q419: ПРГВ,КВШ
Q420: ПРГВ,КВШ
Q421: ПРГВ,КВШ
Q422: ПРГВ,КВШ
Q423: ПРГВ,КВШ
Q424: ПРГВ,КВШ
Q425: ПРГВ,КВШ
Q426: ПРГВ,КВШ
Q427: ПРГВ,КВШ
Q428: ПРГВ,КВШ
Q429: ПРГВ,КВШ
Q430: ПРГВ,КВШ
Q431: ПРГВ,КВШ
Q432: ПРГВ,КВШ
Q433: ПРГВ,КВШ
Q434: ПРГВ,КВШ
Q435: ПРГВ,КВШ
Q436: ПРГВ,КВШ
A437: Разом | D437: =SUM(D336:D436) -> 0 | F437: =SUM(F336:F436) -> 0 | G437: =SUM(G336:G436) -> 0
A438: Стидинське | Q438: ПРГВ,КВШ
Q439: ПРГВ,КВШ
Q440: ПРГВ,КВШ
Q441: ПРГВ,КВШ
Q442: ПРГВ,КВШ
Q443: ПРГВ,КВШ
Q444: ПРГВ,КВШ
Q445: ПРГВ,КВШ
Q446: ПРГВ,КВШ
Q447: ПРГВ,КВШ
Q448: ПРГВ,КВШ
Q449: ПРГВ,КВШ
Q450: ПРГВ,КВШ
Q451: ПРГВ,КВШ
Q452: ПРГВ,КВШ
Q453: ПРГВ,КВШ
Q454: ПРГВ,КВШ
Q455: ПРГВ,КВШ
Q456: ПРГВ,КВШ
Q457: ПРГВ,КВШ
Q458: ПРГВ,КВШ
Q459: ПРГВ,КВШ
Q460: ПРГВ,КВШ
Q461: ПРГВ,КВШ
Q462: ПРГВ,КВШ
Q463: ПРГВ,КВШ
Q464: ПРГВ,КВШ
Q465: ПРГВ,КВШ
Q466: ПРГВ,КВШ
Q467: ПРГВ,КВШ
Q468: ПРГВ,КВШ
Q469: ПРГВ,КВШ
Q470: ПРГВ,КВШ
Q471: ПРГВ,КВШ
Q472: ПРГВ,КВШ
Q473: ПРГВ,КВШ
Q474: ПРГВ,КВШ
... 104 more rows
